Cogmind - Beta 14 X2 @@@ ROGUE MODE // 2024.08.01 @ 20:27:24 Player: Boris Result: Escaped! Performance ------------- Evolutions (9) 4500 Regions Visited (27) 5400 Robots Destroyed (635) 3175 Value Destroyed (25768) 25768 Prototype IDs (68) 1360 Alien Tech Used (0) 0 Bonus (15951) 15951 TOTAL SCORE: 56154 Bonus ------- Triggered High Security 500 High Alert Combat Kills 7858 Follower Combat Kills 2207 Entered Garrisons 1000 Used RIF Installer 3500 Network Hubs Disabled 400 Aligned with FarCom 300 Built Enhanced Grunts 300 A7 Reached Mainframe 300 Met R17 at Cetus 500 Win 3000 Friendly Fire -3914 Cogmind --------- Core Integrity 1270/1600 Matter 295/300 Energy 346/350 System Corruption 3% Temperature Cool (8) Movement Hovering (49) Location To Epsilon Eridani Parts ------- > --- POWER (3) -------- Quantum Reactor > --- PROPULSION (7) --- Improved Antigrav System Antigrav Array Combat Linear Gravjet Combat Linear Gravjet > --- UTILITY (12) ----- Experimental Signal Interpreter Terrain Scanner Terrain Scan Processor Advanced Terrain Scan Processor Improved Melee Analysis Suite Core Analyzer Improved Hacking Suite System Shield Improved System Shield Relay Coupler [Proto] (15) > --- WEAPON (3) ------- Nanosword > --- INVENTORY (5) ---- Experimental Shock Absorption System HERF Cannon Hypervelocity Railgun Tesla Bomb Launcher IN-MT5's Pitchfork "Insurrection" (18) Peak State ------------ > --- POWER ------------ Particle Reactor Compact Particle Reactor Light Quantum Reactor > --- PROPULSION ------- Advanced Medium Treads Centrium Heavy Treads Centrium Heavy Treads > --- UTILITY ---------- Advanced Cooling System Huge Storage Unit Advanced Energy Well Experimental Targeting Computer Centrium Medium Armor Plating Experimental EM Disruption Field Advanced Force Field Advanced Hacking Suite > --- WEAPON ----------- EMDS Longsword +1 > --- INVENTORY -------- Centrium Heavy Treads Centrium Heavy Treads Improved Coolant Injector Advanced Energy Well Improved Terrain Scanner Experimental Targeting Computer Precision Energy Filter Advanced Particle Charger Advanced Weapon Cycler Advanced Weapon Cycler Centrium Medium Armor Plating Advanced Force Field Relay Coupler [NC] Relay Coupler [Proto] Relay Coupler [Proto] Relay Coupler [Proto] Long-range Tractor Beam Enhanced Nova Cannon Enhanced Coil Gun Enhanced Coil Gun Enhanced Coil Gun Tesla Bomb Launcher PL-3XN's Ring of Power [Rating: 168] Favorites ----------- Power Neutrino Core Engine Improved Deuterium Engine Power Core Neutrino Core Reactor Compact Particle Reactor Propulsion Armored Treads Treads Armored Treads Wheel Wheel Hover Unit Antigrav Array Utility Huge Storage Unit Device Improved Cooling System Storage Huge Storage Unit Processor Advanced Targeting Computer Hackware Advanced Hacking Suite Protection Centrium Medium Armor Plating Weapon Enhanced Autogun Energy Gun Spread Laser Energy Cannon Beam Cannon Ballistic Gun Enhanced Autogun Ballistic Cannon Hypervelocity Mass Driver Launcher Heavy Shock Bomb Launcher Special Weapon Improved Remote Datajack Impact Weapon Impact Mace Slashing Weapon Longsword +1 Build | -11 -10 -9 -9 -9 -8 -8 -8 -8 -8 -8 -8 -7 -7 -7 -7 -5 -5 -5 -5 -5 -5 -4 -4 -4 -3 -2 -1 ------- Run | Yrd Mat Mat Min Exi Min Mat Gar Mat Gar Mat Gar Fac Sto Rec Scr Fac Ext Cet Arc Hub Gar Fac Gar Fac Res Res Acc Slots Evolved 18 | . . 2 . . . 2 . . . . . 2 . . . 4 . . . . . 2 . . 2 2 2 Power 2 | . . . . . . . . . . . . 1 . . . 1 . . . . . . . . . . . Propulsion 5 | . . 1 . . . . . . . . . . . . . 1 . . . . . 1 . . 1 1 . Utility 10 | . . . . . . 2 . . . . . 1 . . . 2 . . . . . 1 . . 1 1 2 Weapon 1 | . . 1 . . . . . . . . . . . . . . . . . . . . . . . . . Parts Attached 776 | 6 33 43 16 . 6 27 28 10 7 24 34 27 51 7 88 46 45 20 23 38 26 5 42 54 28 26 16 Power 44 | 1 3 5 1 . . 2 1 1 . 2 . 3 . . 5 1 3 1 . 2 1 . 1 1 5 4 1 Engine 24 | 1 3 5 1 . . 2 1 1 . 1 . 1 . . 4 1 1 . . . . . . . 2 . . Core 6 | . . . . . . . . . . 1 . 2 . . 1 . 1 . . 1 . . . . . . . Reactor 14 | . . . . . . . . . . . . . . . . . 1 1 . 1 1 . 1 1 3 4 1 Propulsion 87 | 2 10 12 4 . 1 5 7 . . 2 2 . 3 . 12 5 . 3 . . . . 3 4 4 3 5 Treads 56 | 2 7 6 1 . . 2 4 . . 2 2 . 3 . 12 5 . 3 . . . . 3 4 . . . Leg . | . . . . . . . . . . . . . . . . . . . . . . . . . . . . Wheel 19 | . 3 6 3 . 1 3 3 . . . . . . . . . . . . . . . . . . . . Hover 12 | . . . . . . . . . . . . . . . . . . . . . . . . . 4 3 5 Flight . | . . . . . . . . . . . . . . . . . . . . . . . . . . . . Utility 294 | 1 12 7 8 . 1 5 4 2 3 4 9 12 9 4 35 17 20 6 18 28 11 4 14 27 13 14 6 Device 184 | . 10 5 7 . 1 2 3 . 2 1 4 1 4 2 25 8 15 3 15 20 8 3 10 22 8 4 1 Storage 8 | 1 2 1 . . . . . . . . . . . . . 1 2 . . . . . . . . 1 . Processor 18 | . . . . . . 1 . 1 . . . 1 . . 2 . . . . . . . 1 . 4 7 1 Hackware 35 | . . 1 . . . 1 . . . 2 2 9 1 1 . 6 . . 2 1 1 1 . 1 1 2 3 Protection 49 | . . . 1 . . 1 1 1 1 1 3 1 4 1 8 2 3 3 1 7 2 . 3 4 . . 1 Artifact . | . . . . . . . . . . . . . . . . . . . . . . . . . . . . Weapon 351 | 2 8 19 3 . 4 15 16 7 4 16 23 12 39 3 36 23 22 10 5 8 14 1 24 22 6 5 4 Energy Gun 70 | 1 3 15 2 . 1 12 4 1 1 1 1 . 8 3 12 3 1 1 . . . . . . . . . Energy Cannon 43 | . 3 1 . . . . 1 3 . . 2 2 2 . 2 4 2 2 . 3 . . 8 5 . 2 1 Ballistic Gun 139 | 1 2 1 . . . 1 5 3 1 10 9 7 20 . 16 8 13 3 5 4 10 . 7 10 2 1 . Ballistic Cannon 2 | . . . . . . . . . . . . . 1 . . . . . . . . . . . . . 1 Launcher 32 | . . 2 1 . 2 . 1 . 1 . 2 . 2 . 1 1 5 2 . . 2 . 6 3 . 1 . Special Weapon 20 | . . . . . . . . . . . 2 2 3 . 3 6 . . . . . . . 3 . . 1 Impact Weapon 1 | . . . . . . . . . . . . . 1 . . . . . . . . . . . . . . Slashing Weapon 44 | . . . . . 1 2 5 . 1 5 7 1 2 . 2 1 1 2 . 1 2 1 3 1 4 1 1 Piercing Weapon . | . . . . . . . . . . . . . . . . . . . . . . . . . . . . Special Melee Weapon . | . . . . . . . . . . . . . . . . . . . . . . . . . . . . Unidentified Prototypes 34 | . 1 3 . . . 3 . . . . . . 8 . . 1 1 6 . 4 . . 1 1 . 4 1 Corrupted Parts 10 | . . . . . . . . . . . . . . . . . . 4 3 . . . 3 . . . . System Corruption 70 | . . . . . . . . . . . . . . . . . . 20 25 . . . 25 . . . . Parts Lost 73 | . 3 2 . . . 2 5 1 . . 1 . 2 . 15 . 1 . . . . 1 . 10 6 17 7 Power 8 | . . . . . . . . 1 . . . . . . 1 . . . . . . . . 3 . 3 . Propulsion 23 | . 1 1 . . . 2 2 . . . . . . . 5 . . . . . . . . 2 2 6 2 Utility 25 | . 1 . . . . . . . . . 1 . . . 5 . 1 . . . . 1 . 3 3 7 3 Weapon 17 | . 1 1 . . . . 3 . . . . . 2 . 4 . . . . . . . . 2 1 1 2 Highest Loss Streak 7 | . 2 1 . . . 1 4 1 . . 1 . 2 . 3 . 1 . . . . 1 . 7 6 6 3 To Critical Strikes 4 | . . . . . . . . 1 . . . . . . 2 . . . . . . . . . . . 1 Average Slot Usage (%) 91 | . 99 98 100 100 100 99 98 99 100 99 99 95 99 100 89 89 84 80 83 85 84 83 80 83 58 79 73 Engine 4 | . 13 10 11 11 11 9 9 8 9 7 . 1 . . 4 10 10 4 . . . . . . 1 . . Core 4 | . . . . . . . . . . 1 9 9 15 15 7 5 5 5 5 2 . . . . . . . Reactor 2 | . . . . . . . . . . . . . . . . . . 5 11 11 14 15 13 14 4 9 5 Treads 16 | . 25 13 11 11 11 9 20 9 9 26 27 23 22 23 20 17 11 11 11 11 11 10 11 14 3 . . Wheel 3 | . 1 19 22 22 22 17 5 18 18 . . . . . . . . . . . . . . . . . . Device 11 | . 14 10 10 11 11 11 10 9 12 2 6 1 3 9 14 8 13 16 21 21 17 15 15 15 14 9 7 Storage 8 | . 14 11 11 11 11 9 9 9 9 9 9 7 7 7 7 5 8 11 11 11 11 10 10 10 3 . . Processor 5 | . . . . . . 3 9 14 9 9 9 14 15 15 4 . . . . . . . 3 4 12 21 20 Hackware 4 | . . . . . . 9 1 . . 12 2 10 10 3 . 17 7 . . 3 5 9 5 5 2 8 16 Protection 3 | . . . . . . 3 5 3 5 3 9 1 . 1 5 2 4 5 2 2 4 5 4 3 . . 1 Energy Gun 7 | . 8 30 32 33 25 26 9 9 6 . . . . 4 9 5 2 1 2 . . . . . . . . Energy Cannon 1 | . 17 1 . . . . 1 4 . . . . . . . 4 . 1 . . . . 3 3 1 1 1 Ballistic Gun 10 | . 1 . . . . . 14 13 17 24 19 21 21 18 11 4 13 4 14 15 14 13 8 4 1 3 . Slashing Weapon 1 | . . . . . . . 1 . 2 1 6 . . . . . . 3 . . 1 1 1 1 2 4 4 Naked Turns . | . . . . . . . . . . . . . . . . . . . . . . . . . . . . Heaviest Build 183 | 13 92 97 103 97 97 101 112 113 114 108 115 117 124 129 135 146 175 177 162 157 165 158 177 183 101 60 57 Greatest Support 190 | 40 40 60 26 20 26 26 76 24 24 72 72 62 62 62 62 140 140 176 176 160 160 160 183 190 160 89 78 Greatest Overweight (x) 9 | . 9 9 5 4 4 9 9 4 4 4 1 1 1 2 6 2 1 2 1 . 1 . 1 1 1 . 1 Average Overweight (x) 1 | . . 3 3 4 3 3 3 4 4 1 1 1 1 1 1 1 . 1 . . . . . . . . . Largest Inventory Capacity 25 | 8 25 25 25 25 25 25 25 25 25 25 25 25 25 25 25 25 25 25 25 25 25 25 25 25 25 5 5 Average Capacity 23 | 7 13 24 25 25 25 25 25 25 25 25 25 25 25 25 25 25 25 25 25 25 25 25 25 25 12 5 5 Most Carried 25 | 5 16 25 25 25 25 25 25 25 25 25 25 25 25 25 25 25 25 25 25 25 25 25 25 25 14 5 5 Average Carried 22 | 3 10 22 24 24 24 24 22 24 25 24 24 22 23 24 23 24 24 24 24 24 24 25 24 23 8 4 4 Final Capacity 25 | 8 15 25 25 25 25 25 25 25 25 25 25 25 25 25 25 25 25 25 25 25 25 25 25 25 5 5 5 Final Carried 25 | 5 15 25 25 25 25 25 24 25 25 25 25 18 24 23 25 25 24 25 25 25 25 25 25 14 5 5 5 Class Distribution -------------------- 17% | Scavenger-Skirmisher 11% | Skirmisher 11% | Scavenger-Scrapper 10% | Mutant 10% | Scavenger-Tank 7% | Scavenger-Mutant 7% | Tank 6% | Scavenger-Gunner 3% | Hacker-Skirmisher 3% | Gunner 3% | Commander-Skirmisher Dominant Class ---------------- Mutant | -10/Materials Scavenger-Gunner | -9/Materials Gunner | -9/Mines Gunner | -9/Exiles Scavenger-Skirmisher | -8/Mines Skirmisher | -8/Materials Skirmisher | -8/Garrison Scavenger-Skirmisher | -8/Materials Scavenger-Skirmisher | -8/Garrison Hacker-Skirmisher | -8/Materials Mutant | -8/Garrison Hacker-Skirmisher | -7/Factory Skirmisher | -7/Storage Skirmisher | -7/Recycling Scavenger-Scrapper | -7/Scraptown Scavenger-Scrapper | -5/Factory Scavenger-Skirmisher | -5/Extension Scavenger-Mutant | -5/Cetus Scavenger-Skirmisher | -5/Archives Scavenger-Skirmisher | -5/Hub_04(d) Scavenger-Skirmisher | -5/Garrison Scavenger-Skirmisher | -4/Factory Scavenger-Tank | -4/Garrison Scavenger-Tank | -4/Factory Scavenger-Scout | -3/Research Scavenger-Scout | -2/Research Hacker-Scout | -1/Access Resources | -11 -10 -9 -9 -9 -8 -8 -8 -8 -8 -8 -8 -7 -7 -7 -7 -5 -5 -5 -5 -5 -5 -4 -4 -4 -3 -2 -1 ----------- Run | Yrd Mat Mat Min Exi Min Mat Gar Mat Gar Mat Gar Fac Sto Rec Scr Fac Ext Cet Arc Hub Gar Fac Gar Fac Res Res Acc Matter Collected 19243 | 270 330 430 230 . 51 299 720 170 327 703 979 764 1629 121 3276 616 1104 324 696 1381 708 . 1484 1867 212 373 179 Remotely 2631 | . . . . . . . . . . . . 208 . . 613 141 351 . 88 359 230 . 81 560 . . . Salvage Created 33110 | 130 790 1606 305 . 96 800 943 366 579 772 1038 831 1997 302 6384 1035 1885 695 712 2051 884 . 2615 4245 704 1083 262 Parts 1608 | 8 41 107 28 . 7 45 35 18 27 31 65 45 92 9 336 62 63 30 53 90 38 . 107 159 38 56 18 Haulers Intercepted 23 | . 1 5 . . . 2 . . . 2 . 2 4 . . 1 1 . . 1 . . . 2 . 2 . Recyclers Shooed 13 | . 1 . 1 . . . . . . 4 . . 2 . . 1 . . . 1 . . . . 3 . . Parts Field Recycled . | . . . . . . . . . . . . . . . . . . . . . . . . . . . . Retrieved Matter . | . . . . . . . . . . . . . . . . . . . . . . . . . . . . Parts Self-Destructed . | . . . . . . . . . . . . . . . . . . . . . . . . . . . . Prevented . | . . . . . . . . . . . . . . . . . . . . . . . . . . . . Kills | -11 -10 -9 -9 -9 -8 -8 -8 -8 -8 -8 -8 -7 -7 -7 -7 -5 -5 -5 -5 -5 -5 -4 -4 -4 -3 -2 -1 ------- Run | Yrd Mat Mat Min Exi Min Mat Gar Mat Gar Mat Gar Fac Sto Rec Scr Fac Ext Cet Arc Hub Gar Fac Gar Fac Res Res Acc Combat Hostiles Destroyed 505 | . 15 32 18 . 7 16 19 6 18 10 25 9 28 3 99 15 16 7 3 31 19 . 39 53 1 13 3 Melee 7 | . . . . . 1 . . . . . . . . . . . . . . 1 . . . 2 1 . 2 Guns 353 | . 5 20 14 . 2 16 14 4 15 10 20 8 28 2 96 9 12 1 3 29 13 . 8 24 . . . Cannons 39 | . 8 8 . . . . . 2 . . . 1 . . . 3 . . . . . . 10 5 . 2 . AOE 58 | . . 4 4 . 4 . 5 . 3 . 5 . . . . . 4 1 . . 6 . 5 7 . 10 . Classes Destroyed 32 | 2 7 4 2 . . . 1 . . . 1 . 1 . 10 . . . . 2 1 . 1 . . . . Worker 31 | . 1 3 1 . . 5 . . . 1 . 5 . . . 2 2 . . 1 . . . 1 6 3 . Builder 25 | . 2 2 . . . 1 . . . 1 . . 2 . . 3 2 . . 2 . . . 2 4 3 1 Tunneler 6 | 2 1 . 2 . . . . . . . . . . . 1 . . . . . . . . . . . . Hauler 23 | . 1 5 . . . 2 . . . 2 . 2 4 . . 1 1 . . 1 . . . 2 . 2 . Recycler 25 | 1 1 2 1 . . . . . . 1 . 2 5 2 . 1 4 . . . . . . 2 3 . . Mechanic 7 | . . 1 . . . 1 . . . . . . . . . 1 1 . . . . . . 3 . . . Operator 15 | . 1 2 . . . 1 . . . . . . 1 . . . . . 9 . . . . . . 1 . Watcher 19 | . 2 3 . . . 2 1 1 . 1 . 1 . . . 1 . 2 . 1 . . 2 . 1 1 . Swarmer 83 | . 3 6 11 . 4 . 5 . 10 . 8 . 2 . . 6 . . . 2 9 . 8 . . 9 . Cutter 4 | . . . . . . . . . . . . . . . . . . . . . . . 4 . . . . Saboteur 5 | . . . . . . . . . . . . . . . . . . . . 1 . . . 4 . . . Grunt 145 | . 12 17 . . 2 5 9 2 3 7 9 5 11 . . 1 10 . . 14 8 . 8 22 . . . Brawler 9 | . . 1 . . . . . . 2 . 2 . . . . . . . . . . . . 4 . . . Duelist 11 | . . 1 . . 1 . 1 . . 1 1 . 2 . . 1 . . . 1 . . 1 1 . . . Protector 1 | . . . . . . . . . . . . . . . . . . . . 1 . . . . . . . Sentry 59 | . . 7 . . . 9 2 3 3 2 2 . 8 3 . . 3 . 3 3 1 . 8 1 . . 1 Demolisher 1 | . . . . . . . . . . . . . 1 . . . . . . . . . . . . . . Specialist 2 | . . . . . . . . . . . . . . . . . . . . . 1 . 1 . . . . Hunter 29 | . . . . . . 2 1 1 . . . 3 1 . . 4 1 . . 1 . . 5 8 . 2 . Programmer 33 | . . . . . . . . . . . 3 1 3 . . 3 . . . 3 . . 2 13 1 2 2 Behemoth 4 | . . . . . . . 1 . . . . . . . . . 1 . . . . . 2 . . . . Cetus Guard 7 | . . . . . . . . . . . . . . . . . . 7 . . . . . . . . . Lightning 5 | . . . . . . . . . . . . . . . . . . . . 5 . . . . . . . Bolteater 7 | . . . . . . . . . . . . . . . 7 . . . . . . . . . . . . Federalist 9 | . . . . . . . . . . . . . . . 9 . . . . . . . . . . . . Explorer 10 | . . . . . . . . . . . . . . . 10 . . . . . . . . . . . . Ranger 6 | . . . . . . . . . . . . . . . 6 . . . . . . . . . . . . Guru 6 | . . . . . . . . . . . . . . . 6 . . . . . . . . . . . . Scientist 2 | . . . . . . . . . . . . . . . 2 . . . . . . . . . . . . Scrapper 42 | . . . . . . . . . . . . . . . 42 . . . . . . . . . . . . Elite 17 | . . . . . . . . . . . . . . . 17 . . . . . . . . . . . . Zionite 2 | . . . . . . . . . . . . . . . 2 . . . . . . . . . . . . Tinkerer 5 | . . . . . . . . . . . . . . . 5 . . . . . . . . . . . . Assembled 7 | . . . 7 . . . . . . . . . . . . . . . . . . . . . . . . Thug 3 | . . . . . . . . . . . . . . . 1 . 1 . 1 . . . . . . . . Guerrilla 3 | . . . 1 . . . . . . . . . . . . . 1 . . . . . 1 . . . . Best Kill Streak 15 | 2 4 7 4 . 4 3 8 2 5 3 8 4 9 3 15 7 7 5 3 8 12 . 5 9 3 9 1 Combat Bots Only 15 | . 4 5 4 . 4 3 8 2 5 3 8 3 8 2 15 4 3 4 1 8 12 . 5 9 1 8 1 Max Kills in Single Turn 5 | 1 1 2 3 . 4 2 2 1 3 1 3 2 2 2 2 3 2 2 1 2 2 . 2 4 1 5 1 Gunslinging 1 | . . . 1 . . . . . 1 . 1 . 1 . 1 . . . . 1 1 . . . . . . Exploded 4 | . . 2 3 . 4 . 2 . 3 . 3 . . . . . 1 1 . . 2 . 2 3 . 4 . Melee 1 | . . . . . 1 . . . . . . . . . . . . . . 1 . . . 1 1 . 1 Uniques/NPCs Destroyed 3 | . . . . . . . . . . . . . . . 1 . . 2 . . . . . . . . . Triborg (-7/Scraptown) Revision 17 (-5/Cetus) A7 (-5/Cetus) Combat | -11 -10 -9 -9 -9 -8 -8 -8 -8 -8 -8 -8 -7 -7 -7 -7 -5 -5 -5 -5 -5 -5 -4 -4 -4 -3 -2 -1 -------- Run | Yrd Mat Mat Min Exi Min Mat Gar Mat Gar Mat Gar Fac Sto Rec Scr Fac Ext Cet Arc Hub Gar Fac Gar Fac Res Res Acc Hostile Shots Fired 2362 | . 62 71 39 . 19 55 85 15 49 34 82 20 256 36 405 79 61 18 11 101 90 4 126 390 68 127 59 Missed 684 | . 16 16 16 . 5 17 19 4 9 7 23 5 90 22 88 25 20 8 . 21 20 . 38 117 20 53 25 Damage Taken 26693 | . 557 852 262 . 228 655 1106 179 446 432 707 205 1798 95 5859 982 742 223 140 1206 989 118 952 3445 1342 2110 1063 Core 3342 | . 101 170 14 . 57 135 151 14 65 44 69 12 221 17 440 55 79 43 . 86 92 . 56 299 461 331 330 Absorbed by Shields 4219 | . . . . . . . . . . 33 94 9 248 . 110 . 348 81 137 789 253 . 857 1260 . . . Reduced by Siege Mode 1035 | . . . . . . . . . . . . . . . 384 27 35 6 18 98 49 . 94 215 109 . . Redirected to Shielding 21 | . . . . . . 21 . . . . . . . . . . . . . . . . . . . . . Ignored by Resistances 969 | . . . . . . . . . . . . . . . 243 . . . . 270 . . . 456 . . . Regen/Repaired (Parts) 1826 | . 94 126 . . . 53 . . . 173 . . 504 . 187 204 . . . . . . . 485 . . . Core Remaining (%) 56 | 100 59 . . . 39 . . . . . 13 . . . 1 . . . . . 64 . . 69 64 77 79 Volleys Fired 1667 | 10 59 76 23 . 6 51 80 22 36 51 57 50 107 6 285 92 73 18 83 79 35 . 162 146 17 36 7 Largest 3 | 2 2 3 3 . 3 3 3 3 3 3 3 3 3 3 3 3 3 3 3 3 3 . 3 3 1 2 1 Hottest 240 | 70 120 195 195 . 195 210 210 171 114 85 111 140 240 240 240 130 96 147 150 105 105 . 190 180 120 120 88 Shots Fired 3688 | 20 118 197 63 . 17 151 193 47 88 121 123 126 294 18 797 143 191 21 109 228 82 . 230 249 17 38 7 Gun 3076 | 20 60 153 60 . 15 151 169 35 84 121 101 113 281 18 768 76 181 3 109 224 78 . 78 162 . 16 . Cannon 456 | . 58 40 . . . . 21 12 1 . 5 6 1 . 2 49 2 10 . 4 . . 133 74 17 14 7 Launcher 112 | . . 4 3 . 2 . 3 . 3 . 10 . 8 . 24 . 8 8 . . 4 . 19 8 . 8 . Special 44 | . . . . . . . . . . . 7 7 4 . 3 18 . . . . . . . 5 . . . Kinetic 2236 | 10 . . . . . . 106 23 56 121 97 113 269 9 567 39 164 2 102 224 78 . 78 162 . 16 . Thermal 1095 | 10 118 193 60 . 15 151 77 24 29 . 9 6 13 9 201 72 19 1 7 . . . 25 25 17 14 . Explosive 12 | . . 4 3 . 2 . 3 . . . . . . . . . . . . . . . . . . . . Electromagnetic 301 | . . . . . . . 7 . 3 . 10 . 8 . 26 14 8 18 . 4 4 . 127 57 . 8 7 Robot Hit Streak 51 | 7 9 12 7 . 12 25 51 14 8 17 14 9 29 31 34 15 32 12 23 14 13 . 23 29 6 10 6 Robot Miss Streak 18 | 2 3 7 11 . 3 18 3 5 2 2 4 6 3 3 6 5 3 3 6 3 5 . 7 4 2 1 1 Penetration Max 2 | . . . . . . . . . 1 1 . . . . . 2 1 . 1 1 1 . 1 1 . 1 . Secondary Targets 75 | . 4 3 5 . . 2 3 . 3 1 8 2 8 1 15 3 1 . . 7 5 . . 4 . . . Max Gunslinging Chain 2 | . 1 1 2 . . 1 1 . 1 1 1 1 2 1 1 1 1 . . 1 1 . . 1 . . . Capacitor 46 | . . . . . . . . . . . . . . . . . . . . . . . 46 . . . . Shots Hit Robots 2458 | 15 76 130 45 . 15 122 155 22 47 88 71 69 207 17 524 78 137 18 72 149 48 . 105 181 30 22 15 Core Hits 1462 | 5 28 139 60 . 26 151 94 14 23 31 40 33 79 14 264 33 73 21 42 67 30 1 52 95 12 32 3 Critical Kills 48 | . . . . . . . . . . 1 1 . 1 . 5 1 2 . 12 13 2 . 4 4 . 2 . Critical Parts Destroyed 68 | 1 . . . . . . 1 . 1 6 1 1 2 . 10 . 3 . 8 19 5 . 1 7 . 2 . Critical Strikes 159 | 2 6 3 . . . . 1 1 3 7 5 1 3 . 18 3 6 1 21 33 8 . 10 20 1 6 . Burn 19 | 1 6 3 . . . . . 1 1 . 2 . . . 2 2 1 . . . . . . . . . . Destroy 122 | 1 . . . . . . 1 . 2 7 2 1 3 . 15 1 5 . 21 32 8 . 7 11 . 5 . Corrupt 12 | . . . . . . . . . . . . . . . 1 . . 1 . . . . 3 7 . . . Sever 6 | . . . . . . . . . . . 1 . . . . . . . . 1 . . . 2 1 1 . Melee Attacks 244 | . . . . . 1 4 26 . 9 11 25 2 1 . 6 2 1 12 . 7 8 1 14 12 34 42 26 Impact . | . . . . . . . . . . . . . . . . . . . . . . . . . . . . Slashing 244 | . . . . . 1 4 26 . 9 11 25 2 1 . 6 2 1 12 . 7 8 1 14 12 34 42 26 Piercing . | . . . . . . . . . . . . . . . . . . . . . . . . . . . . Sneak Attacks 33 | . . . . . . . . . . . . . 1 . . 1 . 7 . . . . . . 14 8 2 Combat Hostiles . | . . . . . . . . . . . . . . . . . . . . . . . . . . . . Follow-up Attacks . | . . . . . . . . . . . . . . . . . . . . . . . . . . . . Damage Inflicted 66194 | 161 1266 2254 750 . 492 1798 2608 410 1043 1657 1751 1090 4037 392 10305 1971 4148 1868 953 4146 1714 17 5611 10476 2078 2355 843 Guns 42426 | 161 566 1574 420 . 222 1798 1842 313 970 1617 1295 1030 3771 380 10015 912 3070 19 953 3843 1308 . 1348 4845 . 154 . Cannons 10139 | . 700 344 . . . . 425 97 . . . 40 . . 38 953 . 260 . 120 . . 3396 3044 424 109 189 Explosions 8792 | . . 336 330 . 221 . 341 . 73 . 341 . 183 . 200 . 1025 1133 . . 406 . 817 2279 . 1107 . Melee 4493 | . . . . . 49 . . . . . 115 . 76 . 52 106 . 456 . 90 . . . 275 1654 966 654 Ramming 344 | . . . . . . . . . . 40 . 20 7 12 . . 53 . . 93 . 17 50 33 . 19 . Kinetic 31610 | 60 . . . . . . 907 222 760 1617 1222 1030 3473 140 6554 449 2768 19 891 3843 1308 . 1348 4845 . 154 . Thermal 16519 | 101 1266 1970 420 . 222 1798 1271 188 210 . 73 40 298 240 3533 886 302 524 62 . . . 962 1411 424 318 . Explosive 1387 | . . 284 330 . 221 . 341 . . . . . . . . . . . . . . . . 129 . 82 . Electromagnetic 11841 | . . . . . . . 89 . 73 . 341 . 183 . 166 530 1025 869 . 120 406 . 3251 3783 . 816 189 Impact . | . . . . . . . . . . . . . . . . . . . . . . . . . . . . Slashing 4493 | . . . . . 49 . . . . . 115 . 76 . 52 106 . 456 . 90 . . . 275 1654 966 654 Piercing . | . . . . . . . . . . . . . . . . . . . . . . . . . . . . Highest Corruption 44 | . . . . . . 1 1 . . . 3 . 1 1 2 8 2 20 20 21 22 5 33 44 1 10 3 Average Corruption 12 | . . . . . . 1 1 . . . 2 . 1 1 1 2 1 10 9 12 21 5 18 35 1 9 2 Corruption Purged 66 | . . . . . . . 1 . . . 3 . . 1 2 14 2 . 43 . . . . . . . . Corruption Blocked . | . . . . . . . . . . . . . . . . . . . . . . . . . . . . Effects 448 | . . . . . . 4 13 . . . 2 . 1 . 7 26 10 18 31 48 63 . 110 92 4 16 3 Message Errors 99 | . . . . . . . 2 . . . . . 1 . 3 5 3 5 3 10 10 . 30 22 . 3 2 Matter Fused 84 | . . . . . . . 8 . . . . . . . . 4 . 3 4 7 16 . 18 18 . 5 1 Heat Flow Errors 59 | . . . . . . 1 2 . . . . . . . 2 2 2 1 8 7 7 . 16 7 1 3 . Energy Discharges 40 | . . . . . . . . . . . . . . . . 4 1 4 4 3 8 . 11 4 . 1 . Parts Rejected 4 | . . . . . . . . . . . . . . . . . . . . 1 1 . . 2 . . . Parts Fused 3 | . . . . . . . . . . . . . . . . . . 1 1 . . . . 1 . . . Data Loss (minor) 53 | . . . . . . 3 . . . . . . . . 1 4 2 . 6 5 7 . 13 9 2 1 . Data Loss (major) 24 | . . . . . . . . . . . 1 . . . 1 2 1 3 2 3 3 . 6 2 . . . Misfires 21 | . . . . . . . 1 . . . 1 . . . . 3 1 . 1 5 1 . 5 2 . 1 . Alerts 11 | . . . . . . . . . . . . . . . . 1 . 1 . 1 3 . 4 . 1 . . Misdirections 7 | . . . . . . . . . . . . . . . . . . . . 1 . . 3 2 . 1 . Weapon Failures 43 | . . . . . . . . . . . . . . . . 1 . . 2 5 7 . 4 23 . 1 . Overload Shots 15 | . . . . . . . . . . . . . 1 . 2 10 2 . . . . . . . . . . Effects 2 | . . . . . . . . . . . . . 1 . . 1 . . . . . . . . . . . Energy Bleed 2 | . . . . . . . . . . . . . 1 . . 1 . . . . . . . . . . . Overflow Damage 1512 | . 7 . 33 . 27 . 20 9 . . . . 5 . . 53 7 9 . 2 9 . 101 453 556 161 60 Projectiles 332 | . 7 . . . . . 20 9 . . . . . . . 53 . 3 . . . . 66 142 32 . . Explosions 406 | . . . 33 . 27 . . . . . . . 5 . . . 7 6 . . 9 . 35 269 . 15 . Melee 774 | . . . . . . . . . . . . . . . . . . . . 2 . . . 42 524 146 60 Knockbacks 2 | . . . . . . . . . . . . . . . . . . . . . . . 1 1 . . . Impact 2 | . . . . . . . . . . . . . . . . . . . . . . . 1 1 . . . Kinetic . | . . . . . . . . . . . . . . . . . . . . . . . . . . . . Secondary . | . . . . . . . . . . . . . . . . . . . . . . . . . . . . Self-Inflicted Damage 397 | . . 101 . . 6 . . . 49 . 54 . . . . . . 5 . . . . 10 . . 172 . Shots 15 | . . 3 . . 1 . . . 2 . 3 . . . . . . 1 . . . . 2 . . 3 . Rammed 27 | . . . . . . . . . . 4 . 1 2 1 . 1 4 . . 5 . 1 4 3 . 1 . Targets Rammed 28 | . . . . . . . . . . 4 . 1 2 1 . 1 4 . . 6 . 1 4 3 . 1 . Kicked . | . . . . . . . . . . . . . . . . . . . . . . . . . . . . Crushed 1 | . . . . . . . . . . . . . . . . . . . . 1 . . . . . . . Highest Temperature 495 | 130 243 370 364 . 328 244 245 161 295 195 269 182 327 265 392 254 106 204 207 229 344 . 279 465 283 495 17 Average Temperature 83 | 61 104 103 104 . 163 74 55 45 82 52 83 59 71 135 90 60 18 71 79 53 99 . 72 84 111 111 9 Received Heat Transfer 6702 | . 369 309 20 . 126 180 381 63 108 204 147 21 464 18 1722 72 151 . 4 94 438 . 78 508 166 1041 18 Effects 22 | . . 1 1 . 3 . . . 3 . . . 1 . 6 . . . . . 4 . 2 . 1 . . Shutdowns 2 | . . . 1 . . . . . . . . . . . 1 . . . . . . . . . . . . Energy Bleed 7 | . . 1 . . . . . . 1 . . . 1 . 1 . . . . . 1 . 1 . 1 . . Interference 13 | . . . . . 3 . . . 2 . . . . . 4 . . . . . 3 . 1 . . . . Siege Activations 67 | . . . . . . . . . . . . . . . 22 3 7 1 2 10 5 . 10 6 1 . . Total Turns 1384 | . . . . . . . . . . . . . . . 230 57 196 7 95 181 74 . 171 277 96 . . Longest Duration 158 | . . . . . . . . . . . . . . . 49 44 93 7 49 55 28 . 33 158 96 . . Robots Corrupted 44 | . . . . . . . . . . . . . . . 1 2 1 6 . 1 . . 16 15 . 1 1 Combat Hostiles 42 | . . . . . . . . . . . . . . . 1 2 . 5 . 1 . . 16 15 . 1 1 Parts Fried 93 | . . . . . . . . . . . . . 1 . 1 7 4 10 . 4 1 . 26 31 . 6 2 Impact Corruptions 1 | . . . . . . . . . . . . . . . . . . . . 1 . . . . . . . Robots Melted 6 | . 2 . . . . . . . . . . . . 1 2 1 . . . . . . . . . . . Combat Hostiles 6 | . 2 . . . . . . . . . . . . 1 2 1 . . . . . . . . . . . Parts Melted 67 | 2 5 4 . . . . 4 1 . . 2 . 2 3 34 5 1 2 . . . . . 2 . . . Heat Transferred 25580 | 370 3330 3604 540 . 295 2535 2070 446 592 . 296 50 611 550 5690 1531 666 350 74 . . . 550 931 275 224 . Parts Sabotaged 11 | . . . . . . . . . . . . . . . . . . . . . . . . 9 . 2 . Parts Stolen 4 | . . . . . . . . . . . . . . . 4 . . . . . . . . . . . . Parts Stripped . | . . . . . . . . . . . . . . . . . . . . . . . . . . . . Power Chain Reactions 13 | . . . . . . . . . . . . . . . 7 . 1 2 . . . . . . . 3 . Alert | -11 -10 -9 -9 -9 -8 -8 -8 -8 -8 -8 -8 -7 -7 -7 -7 -5 -5 -5 -5 -5 -5 -4 -4 -4 -3 -2 -1 ------- Run | Yrd Mat Mat Min Exi Min Mat Gar Mat Gar Mat Gar Fac Sto Rec Scr Fac Ext Cet Arc Hub Gar Fac Gar Fac Res Res Acc Peak Influence 2753 | 15 190 725 399 . 194 423 788 465 774 593 1083 739 544 209 . 325 625 557 445 1356 1374 723 2485 2753 1515 1535 994 Initial 1422 | . 9 70 209 . . 75 79 384 239 377 36 568 254 195 . . 128 320 175 36 688 721 499 1304 1422 767 791 Average 555 | 6 76 416 277 . 112 144 397 319 554 248 639 567 259 110 . 107 257 430 287 854 1094 721 1284 1821 1435 1178 858 Maximum Alert Level 5 | . . 3 1 . . 2 3 2 3 2 3 3 2 1 . 1 2 2 2 4 4 3 5 5 4 4 3 Low Security (%) 29 | 100 100 13 21 . 100 72 8 11 . 36 23 . 23 98 . 77 53 . 13 6 . . . . . . . Level 1 22 | . . 34 78 . . 24 50 79 21 46 5 9 69 1 . 22 17 6 60 9 . . . . . . . Level 2 18 | . . 47 . . . 3 21 9 48 16 15 89 6 . . . 29 93 26 15 3 . 17 . . . . Level 3 12 | . . 4 . . . . 19 . 29 . 55 1 . . . . . . . 43 32 100 23 . . 26 100 Level 4 11 | . . . . . . . . . . . . . . . . . . . . 25 64 . 32 36 100 73 . Level 5 3 | . . . . . . . . . . . . . . . . . . . . . . . 27 34 . . . High Security 1 | . . . . . . . . . . . . . . . . . . . . . . . . 28 . . . Max Security . | . . . . . . . . . . . . . . . . . . . . . . . . . . . . Squads Dispatched 89 | . 4 7 . . . 9 . . . 2 . 3 12 . . 1 1 . . 15 . 1 . 21 4 6 3 Investigation 21 | . 3 2 . . . 1 . . . . . 1 6 . . . . . . 6 . . . . . 1 1 Extermination 11 | . . . . . . . . . . . . 1 3 . . 1 . . . 2 . . . 1 1 1 1 Reinforcement 15 | . 1 2 . . . 2 . . . 2 . 1 1 . . . . . . 2 . . . 2 . 1 1 Assault 32 | . . 3 . . . . . . . . . . 2 . . . 1 . . 1 . 1 . 18 3 3 . Garrison 10 | . . . . . . 6 . . . . . . . . . . . . . 4 . . . . . . . Intercept . | . . . . . . . . . . . . . . . . . . . . . . . . . . . . Searches Triggered . | . . . . . . . . . . . . . . . . . . . . . . . . . . . . Construction Impeded 3 | . . . . . . 1 . . . . . . 1 . . . . . . . . . . 1 . . . Haulers Reinforced 2 | . . . . . . . . . . . . 1 . . . . . . . . . . . 1 . . . Active Scanning Responses . | . . . . . . . . . . . . . . . . . . . . . . . . . . . . Cargo Convoy Interrupts . | . . . . . . . . . . . . . . . . . . . . . . . . . . . . Alert ID Control Effect 18 | . . . . . . . . . . . . 2 13 . . 3 . . . . . . . . . . . Stealth | -11 -10 -9 -9 -9 -8 -8 -8 -8 -8 -8 -8 -7 -7 -7 -7 -5 -5 -5 -5 -5 -5 -4 -4 -4 -3 -2 -1 --------- Run | Yrd Mat Mat Min Exi Min Mat Gar Mat Gar Mat Gar Fac Sto Rec Scr Fac Ext Cet Arc Hub Gar Fac Gar Fac Res Res Acc Distress Signals 25 | . 2 3 . . . 2 . 2 . 2 . 2 . . . 1 . 2 2 1 . . 1 . . 3 2 Communications Jammed 70 | . . . . . . . . . . . . . . . . 47 1 . . 22 . . . . . . . Distress Signals 70 | . . . . . . . . . . . . . . . . 47 1 . . 22 . . . . . . . Times Spotted 825 | . 22 44 22 . 6 29 24 12 18 22 27 19 49 5 113 36 39 9 28 50 20 3 39 101 23 47 18 Peak Tracking Total 20 | . 4 8 6 . 4 3 7 4 5 4 10 4 10 2 6 6 6 5 2 9 7 4 5 20 9 11 12 Tactical Retreats 59 | . . 1 1 . . 3 . . 1 1 2 1 2 . 9 3 2 . . 2 2 . 7 6 4 8 4 Traps | -11 -10 -9 -9 -9 -8 -8 -8 -8 -8 -8 -8 -7 -7 -7 -7 -5 -5 -5 -5 -5 -5 -4 -4 -4 -3 -2 -1 ------- Run | Yrd Mat Mat Min Exi Min Mat Gar Mat Gar Mat Gar Fac Sto Rec Scr Fac Ext Cet Arc Hub Gar Fac Gar Fac Res Res Acc Traps Triggered 47 | . 6 2 . . . 1 2 . 4 . 6 1 5 . . 3 8 . . 4 . 1 . . . 3 1 Indirectly 6 | . . . . . . . . . 3 . . . 3 . . . . . . . . . . . . . . Trap Hack Attempts . | . . . . . . . . . . . . . . . . . . . . . . . . . . . . Triggered . | . . . . . . . . . . . . . . . . . . . . . . . . . . . . Disarmed . | . . . . . . . . . . . . . . . . . . . . . . . . . . . . Reprogrammed . | . . . . . . . . . . . . . . . . . . . . . . . . . . . . Reused 3 | . . . . . . . . . 2 . . . . . 1 . . . . . . . . . . . . Traps Extracted . | . . . . . . . . . . . . . . . . . . . . . . . . . . . . Installed 4 | . . . . . . . . . 3 . . . . . 1 . . . . . . . . . . . . Triggered 2 | . . . . . . . . . 2 . . . . . . . . . . . . . . . . . . Most Traps Carried 4 | . . . 3 3 3 3 3 3 4 4 4 . . . . . . . . . . . . . . . . Machines | -11 -10 -9 -9 -9 -8 -8 -8 -8 -8 -8 -8 -7 -7 -7 -7 -5 -5 -5 -5 -5 -5 -4 -4 -4 -3 -2 -1 ---------- Run | Yrd Mat Mat Min Exi Min Mat Gar Mat Gar Mat Gar Fac Sto Rec Scr Fac Ext Cet Arc Hub Gar Fac Gar Fac Res Res Acc Machines Disabled 72 | . 1 2 . . . . 1 . 4 1 8 . 4 . 13 2 6 1 3 5 1 . 6 12 . 2 . Max in Single Turn 5 | . 1 2 . . . . . . 1 1 1 . 1 . 1 1 2 1 1 1 1 . 1 5 . 1 . Garrison Access 6 | . . . . . . . . . . . . . . . . 2 . . . . . . . 1 . 2 1 Garrison Relay 3 | . . . . . . . . . . . 1 . . . . . . . . . 1 . 1 . . . . Network Hub 2 | . . . . . . . . . . . . . . . . . . . . 2 . . . . . . . Machines Repaired . | . . . . . . . . . . . . . . . . . . . . . . . . . . . . Machines Dismantled . | . . . . . . . . . . . . . . . . . . . . . . . . . . . . Machines Sabotaged 1 | . . . . . . . . . . . . . . . . . . . . 1 . . . . . . . Overloaded Fab Kills . | . . . . . . . . . . . . . . . . . . . . . . . . . . . . Hacking | -11 -10 -9 -9 -9 -8 -8 -8 -8 -8 -8 -8 -7 -7 -7 -7 -5 -5 -5 -5 -5 -5 -4 -4 -4 -3 -2 -1 --------- Run | Yrd Mat Mat Min Exi Min Mat Gar Mat Gar Mat Gar Fac Sto Rec Scr Fac Ext Cet Arc Hub Gar Fac Gar Fac Res Res Acc Machines Accessed 124 | . 9 9 1 2 . 11 2 7 1 8 2 4 11 11 . 5 8 2 . 9 2 1 1 2 2 12 2 Terminals 88 | . 7 6 . . . 9 2 6 1 6 2 2 9 5 . 2 8 2 . 8 2 . 1 . 1 8 1 Fabricators 4 | . . . . . . . . . . . . 2 . . . . . . . . . . . . 1 1 . Repair Stations 7 | . 1 2 . . . 1 . . . 1 . . 2 . . . . . . . . . . . . . . Recycling Units 10 | . 1 1 . . . . . . . . . . . 6 . 1 . . . . . . . . . 1 . Scanalyzers 1 | . . . . . . . . . . . . . . . . . . . . . . . . 1 . . . Garrison Access 11 | . . . . . . 1 . 1 . 1 . . . . . 2 . . . 1 . 1 . 1 . 2 1 Total Hacks 369 | . 29 27 1 2 . 32 3 17 2 25 3 23 46 26 . 11 16 2 . 32 10 4 6 2 9 38 3 Successful 195 | . 21 20 1 2 . 19 2 11 1 18 2 16 18 13 . 7 7 2 . 11 3 1 1 2 1 14 2 Failed 174 | . 8 7 . . . 13 1 6 1 7 1 7 28 13 . 4 9 . . 21 7 3 5 . 8 24 1 Catastrophic 28 | . . . . . . 3 . . . 1 . 2 5 2 . 1 . . . 2 2 . 2 . 1 7 . Database Lockouts . | . . . . . . . . . . . . . . . . . . . . . . . . . . . . Manual 203 | . 20 19 . 1 . 24 . 13 . 15 1 11 22 15 . 2 2 1 . 28 7 3 3 . 4 12 . Terminals 269 | . 23 18 . . . 26 3 14 2 19 3 8 38 13 . 5 16 2 . 29 10 . 6 . 5 27 2 Fabricators 22 | . . . . . . . . . . . . 15 . . . . . . . . . . . . 4 3 . Repair Stations 26 | . 2 8 . . . 3 . . . 5 . . 8 . . . . . . . . . . . . . . Recycling Units 25 | . 4 1 . . . . . . . . . . . 13 . 2 . . . . . . . . . 5 . Scanalyzers 1 | . . . . . . . . . . . . . . . . . . . . . . . . 1 . . . Garrison Access 23 | . . . . . . 3 . 3 . 1 . . . . . 4 . . . 3 . 4 . 1 . 3 1 Terminal Hacks 70 | . 10 5 1 2 . 7 2 4 1 5 2 2 5 . . 1 7 2 . 4 3 . 1 . . 5 1 Record 5 | . 3 . . 1 . . . . . . . . . . . . . 1 . . . . . . . . . Part Schematic 1 | . 1 . . . . . . . . . . . . . . . . . . . . . . . . . . Robot Schematic 2 | . 1 . . . . . . . . . . 1 . . . . . . . . . . . . . . . Robot Analysis 5 | . 3 1 . . . . . 1 . . . . . . . . . . . . . . . . . . . Prototype ID Bank 4 | . 1 . . . . . . 1 . 1 . . 1 . . . . . . . . . . . . . . Open Door 11 | . . . 1 . . . 1 . . . . . 1 . . . 6 1 . . . . . . . . 1 Open DSF 1 | . . . . . . . . . . . . . . . . . . . . . . . . . . 1 . Branch Access Points 4 | . . 1 . . . 1 . . . . . . 1 . . . . . . . . . . . . 1 . Emergency Access Points 4 | . . . . . . . . . 1 . 1 . . . . . . . . . 1 . 1 . . . . Terminal Index 3 | . . . . . . 1 . . . 1 . . . . . 1 . . . . . . . . . . . Alert Level 1 | . . . . . . . . . . . . . 1 . . . . . . . . . . . . . . Unreport Threat 10 | . . 1 . . . 2 . 1 . 2 . 1 . . . . . . . 3 . . . . . . . Locate Traps 2 | . . . . . . . . . . . . . . . . . 1 . . . . . . . . 1 . Hauler Manifests 1 | . 1 . . . . . . . . . . . . . . . . . . . . . . . . . . Zone Layout 11 | . . 2 . . . 3 . 1 . 1 . . 1 . . . . . . 1 . . . . . 2 . Garrison Registry 2 | . . . . . . . 1 . . . . . . . . . . . . . 1 . . . . . . Patrol Navigation 1 | . . . . . . . . . . . . . . . . . . . . . 1 . . . . . . Security Stations 1 | . . . . . . . . . . . 1 . . . . . . . . . . . . . . . . Derelict Proto ID Bank 1 | . . . . 1 . . . . . . . . . . . . . . . . . . . . . . . Fabricator Hacks 14 | . . . . . . . . . . . . 12 . . . . . . . . . . . . . 2 . Load Schematic 7 | . . . . . . . . . . . . 6 . . . . . . . . . . . . . 1 . Build 7 | . . . . . . . . . . . . 6 . . . . . . . . . . . . . 1 . Repair Station Hacks 16 | . 2 4 . . . 2 . . . 4 . . 4 . . . . . . . . . . . . . . Scan Component 8 | . 1 2 . . . 1 . . . 2 . . 2 . . . . . . . . . . . . . . Repair 8 | . 1 2 . . . 1 . . . 2 . . 2 . . . . . . . . . . . . . . Recycling Unit Hacks 6 | . 1 . . . . . . . . . . . . 3 . 2 . . . . . . . . . . . Process 1 | . . . . . . . . . . . . . . . . 1 . . . . . . . . . . . Retrieve Matter 1 | . . . . . . . . . . . . . . . . 1 . . . . . . . . . . . Retrieve Components 4 | . 1 . . . . . . . . . . . . 3 . . . . . . . . . . . . . Scanalyzer 1 | . . . . . . . . . . . . . . . . . . . . . . . . 1 . . . Insert Component 1 | . . . . . . . . . . . . . . . . . . . . . . . . 1 . . . Garrison Access Hacks 14 | . . . . . . 1 . 1 . 1 . . . . . 4 . . . 1 . 1 . 1 . 3 1 Unlock Access 5 | . . . . . . 1 . 1 . 1 . . . . . . . . . 1 . 1 . . . . . Seal Access 6 | . . . . . . . . . . . . . . . . 2 . . . . . . . 1 . 2 1 Coupler Status 3 | . . . . . . . . . . . . . . . . 2 . . . . . . . . . 1 . Unauthorized Hacks 74 | . 8 11 . . . 9 . 6 . 8 . 2 9 10 . . . . . 6 . . . . 1 4 . Terminals 61 | . 7 9 . . . 8 . 6 . 8 . . 8 4 . . . . . 6 . . . . 1 4 . Assimilate 2 | . . . . . . . . 1 . 1 . . . . . . . . . . . . . . . . . Botnet 11 | . 1 2 . . . 2 . . . 1 . . 3 1 . . . . . 1 . . . . . . . Operators 5 | . 1 1 . . . 1 . . . 1 . . . . . . . . . . . . . . 1 . . Skim 38 | . 5 6 . . . 5 . 5 . 5 . . 5 3 . . . . . . . . . . . 4 . Sabotage 5 | . . . . . . . . . . . . . . . . . . . . 5 . . . . . . . Fabricators 2 | . . . . . . . . . . . . 2 . . . . . . . . . . . . . . . Prioritize 2 | . . . . . . . . . . . . 2 . . . . . . . . . . . . . . . Repair Stations 2 | . . 1 . . . . . . . . . . 1 . . . . . . . . . . . . . . Patch 2 | . . 1 . . . . . . . . . . 1 . . . . . . . . . . . . . . Recycling Units 8 | . 1 1 . . . . . . . . . . . 6 . . . . . . . . . . . . . Tunnel 8 | . 1 1 . . . . . . . . . . . 6 . . . . . . . . . . . . . Scanalyzers . | . . . . . . . . . . . . . . . . . . . . . . . . . . . . Garrison Access 1 | . . . . . . 1 . . . . . . . . . . . . . . . . . . . . . Reprogram 1 | . . . . . . 1 . . . . . . . . . . . . . . . . . . . . . Data Cores Recovered 1 | . . . . . . . . . . . . . . . . . . . . . . . . . . 1 . Used 1 | . . . . . . . . . . . . . . . . . . . . . . . . . . 1 . Hacking Detections 96 | . 9 7 . . . 10 2 5 1 8 1 2 11 6 . 4 5 3 . 6 2 1 1 . 2 9 1 Full Trace Events 9 | . . . . . . . . . . . . 1 4 2 . . . . . 1 . . . . . 1 . Feedback Events . | . . . . . . . . . . . . . . . . . . . . . . . . . . . . Feedback Blocked 1 | . . . . . . . . . . . . . 1 . . . . . . . . . . . . . . Robot Schematics Acquired 2 | . 1 . . . . . . . . . . 1 . . . . . . . . . . . . . . . Robots Built 18 | . . . . . . . . . . . . 18 . . . . . . . . . . . . . . . Authchips 6 | . . . . . . . . . . . . 6 . . . . . . . . . . . . . . . Time 232 | . . . . . . . . . . . . 232 . . . . . . . . . . . . . . . Total Robot Build Rating 54 | . . . . . . . . . . . . 54 . . . . . . . . . . . . . . . Part Schematics Acquired 2 | . 1 . . . . . . . . . . . . . 1 . . . . . . . . . . . . Parts Built 1 | . . . . . . . . . . . . . . . . . . . . . . . . . . 1 . Authchips . | . . . . . . . . . . . . . . . . . . . . . . . . . . . . Time 76 | . . . . . . . . . . . . . . . . . . . . . . . . . . 76 . Total Part Build Rating 5 | . . . . . . . . . . . . . . . . . . . . . . . . . . 5 . Parts Repaired 8 | . 1 2 . . . 1 . . . 2 . . 2 . . . . . . . . . . . . . . Time 290 | . 26 48 . . . 32 . . . 116 . . 68 . . . . . . . . . . . . . . Parts Recycled . | . . . . . . . . . . . . . . . . . . . . . . . . . . . . Recycled Matter 153 | . . . . . . . . . . . . . . . . 153 . . . . . . . . . . . Retrieved Matter 153 | . . . . . . . . . . . . . . . . 153 . . . . . . . . . . . Retrieved Components 5 | . 3 . . . . . . . . . . . . 2 . . . . . . . . . . . . . Parts Scanalyzed . | . . . . . . . . . . . . . . . . . . . . . . . . . . . . Part Schematics Acquired . | . . . . . . . . . . . . . . . . . . . . . . . . . . . . Parts Damaged . | . . . . . . . . . . . . . . . . . . . . . . . . . . . . Bothacking | -11 -10 -9 -9 -9 -8 -8 -8 -8 -8 -8 -8 -7 -7 -7 -7 -5 -5 -5 -5 -5 -5 -4 -4 -4 -3 -2 -1 ------------ Run | Yrd Mat Mat Min Exi Min Mat Gar Mat Gar Mat Gar Fac Sto Rec Scr Fac Ext Cet Arc Hub Gar Fac Gar Fac Res Res Acc Used RIF Installer 7 | . . . . . . . 1 . 1 . 2 . . . . . . . . . 1 . 2 . . . . Coupler Efficiency 1 | . . . . . . . . . 1 . . . . . . . . . . . . . . . . . . Code Merge 1 | . . . . . . . . . . . . . . . . . . . . . . . 1 . . . . Zone Cloak 1 | . . . . . . . . . . . 1 . . . . . . . . . . . . . . . . Robot Detection 1 | . . . . . . . . . . . . . . . . . . . . . . . 1 . . . . Watcher Feeds 1 | . . . . . . . . . . . . . . . . . . . . . 1 . . . . . . Alert ID Control 1 | . . . . . . . . . . . 1 . . . . . . . . . . . . . . . . Robots Hacked 24 | . . . . . . . . . . . 4 1 3 . . 14 . . . . . . . 2 . . . Non-combat 7 | . . . . . . . . . . . . . . . . 5 . . . . . . . 2 . . . Combat 17 | . . . . . . . . . . . 4 1 3 . . 9 . . . . . . . . . . . Robot Hacks Applied 26 | . . . . . . . . . . . 5 1 3 . . 15 . . . . . . . 2 . . . parse_system 1 | . . . . . . . . . . . . . . . . 1 . . . . . . . . . . . map_walls 1 | . . . . . . . . . . . . . . . . 1 . . . . . . . . . . . map_earth 1 | . . . . . . . . . . . . . . . . 1 . . . . . . . . . . . drop_inventory 1 | . . . . . . . . . . . . . . . . 1 . . . . . . . . . . . locate_stockpiles 1 | . . . . . . . . . . . . . . . . 1 . . . . . . . . . . . ignore_parts 1 | . . . . . . . . . . . . . . . . 1 . . . . . . . . . . . map_route 1 | . . . . . . . . . . . . . . . . . . . . . . . . 1 . . . mark_system 1 | . . . . . . . . . . . 1 . . . . . . . . . . . . . . . . overload_power 1 | . . . . . . . . . . . 1 . . . . . . . . . . . . . . . . amplify_resonance 1 | . . . . . . . . . . . . . . . . 1 . . . . . . . . . . . overwrite_iff 6 | . . . . . . . . . . . 1 . 1 . . 4 . . . . . . . . . . . formatsys_low 2 | . . . . . . . . . . . . . . . . 1 . . . . . . . 1 . . . formatsys_high 8 | . . . . . . . . . . . 2 1 2 . . 3 . . . . . . . . . . . Relay Couplers Released 22 | . . . . . . . . . . . 5 . . . . 9 . . . . 3 . 5 . . . . Machine Destruction 18 | . . . . . . . . . . . 5 . . . . 5 . . . . 3 . 5 . . . . Programmers 4 | . . . . . . . . . . . . . . . . 4 . . . . . . . . . . . Attached 10 | . . . . . . . . . . . 2 1 . . . 4 . . . . 1 . . 1 1 . . Fabnet Peak Effective % . | . . . . . . . . . . . . . . . . . . . . . . . . . . . . Robots Rewired 12 | . . . . . . . 2 . . . . 1 . . . . 9 . . . . . . . . . . Allies Hacked 1 | . . . . . . . . . . . . . 1 . . . . . . . . . . . . . . Hacks Repelled . | . . . . . . . . . . . . . . . . . . . . . . . . . . . . Allies | -11 -10 -9 -9 -9 -8 -8 -8 -8 -8 -8 -8 -7 -7 -7 -7 -5 -5 -5 -5 -5 -5 -4 -4 -4 -3 -2 -1 -------- Run | Yrd Mat Mat Min Exi Min Mat Gar Mat Gar Mat Gar Fac Sto Rec Scr Fac Ext Cet Arc Hub Gar Fac Gar Fac Res Res Acc Total Allies 80 | . . . . . . 2 2 1 . . 3 20 15 . . 8 19 5 . . . . 2 1 . . 2 Largest Group 13 | . . . . . . . 2 1 1 . 2 13 13 . . 4 7 8 7 5 . . 2 1 . . 1 Highest-Rated Group 685 | . . . . . . . 59 33 26 . 30 208 235 . . 130 280 685 535 473 . . 97 46 . . 10 Highest-Rated Ally 159 | . . . . . . . 39 33 26 . 15 16 31 . . 49 159 143 96 96 . . 51 46 . . 10 Total Orders 44 | . . . . . . . 4 2 9 . . 3 3 . . 7 2 4 5 1 . . . 1 . 3 . STAY 20 | . . . . . . . 2 2 4 . . 1 2 . . 3 1 2 2 1 . . . . . . . FOLLOW 17 | . . . . . . . 2 . 5 . . 2 1 . . 2 1 1 3 . . . . . . . . AID 4 | . . . . . . . . . . . . . . . . 2 . 1 . . . . . 1 . . . EXPLORE 3 | . . . . . . . . . . . . . . . . . . . . . . . . . . 3 . Ally Attacks 608 | . . . . . . . 35 11 . . 10 89 154 . . 25 156 31 9 60 . . 10 13 . . 5 Total Damage 10217 | . . . . . . . 514 134 . . 128 941 1907 . . 322 2771 691 257 2007 . . 255 208 . . 82 Kills 78 | . . . . . . . 4 3 . . . 9 18 . . 3 22 1 1 14 . . 2 . . . 1 Allies Corrupted 4 | . . . . . . . . . . . . . . . . . 1 . . 3 . . . . . . . Allies Melted . | . . . . . . . . . . . . . . . . . . . . . . . . . . . . Intel | -11 -10 -9 -9 -9 -8 -8 -8 -8 -8 -8 -8 -7 -7 -7 -7 -5 -5 -5 -5 -5 -5 -4 -4 -4 -3 -2 -1 ------- Run | Yrd Mat Mat Min Exi Min Mat Gar Mat Gar Mat Gar Fac Sto Rec Scr Fac Ext Cet Arc Hub Gar Fac Gar Fac Res Res Acc Robot Analysis Total 5 | . 3 1 . . . . . 1 . . . . . . . . . . . . . . . . . . . Derelict Logs Recovered 2 | . . . 2 . . . . . . . . . . . . . . . . . . . . . . . . Drone Launches 6 | . . . . . . . . . . . . . . . . . . . . . . . . . . 6 . Drone Recoveries . | . . . . . . . . . . . . . . . . . . . . . . . . . . . . Exploration | -11 -10 -9 -9 -9 -8 -8 -8 -8 -8 -8 -8 -7 -7 -7 -7 -5 -5 -5 -5 -5 -5 -4 -4 -4 -3 -2 -1 ------------- Run | Yrd Mat Mat Min Exi Min Mat Gar Mat Gar Mat Gar Fac Sto Rec Scr Fac Ext Cet Arc Hub Gar Fac Gar Fac Res Res Acc Turns Passed 39609 | 112 1578 2009 986 485 221 1566 1497 753 873 1508 1871 1169 2138 1232 7052 2009 2295 696 884 1350 1202 259 2479 1293 803 863 426 Spaces Moved 18123 | 54 762 1060 607 345 139 804 552 380 485 443 670 394 694 473 2568 805 813 226 339 569 626 154 1070 434 813 1305 539 Core 127 | 15 . . . . . . . . . . . . . . . . . . . . . . . . 112 . . Treads 11311 | 39 652 60 . . . . 259 . . 406 670 394 694 473 2568 805 813 226 339 569 626 154 1070 434 60 . . Legs . | . . . . . . . . . . . . . . . . . . . . . . . . . . . . Wheels 4200 | . 110 1000 607 345 139 804 293 380 485 37 . . . . . . . . . . . . . . . . . Hover 2485 | . . . . . . . . . . . . . . . . . . . . . . . . . 641 1305 539 Flight . | . . . . . . . . . . . . . . . . . . . . . . . . . . . . Fastest Speed 42 | 50 95 135 135 140 135 135 150 150 150 150 238 241 241 241 160 160 160 160 160 160 160 160 160 155 48 42 48 Average Speed 168 | 129 162 142 139 140 135 140 203 150 150 230 243 241 241 251 224 180 215 256 163 160 160 160 176 168 57 45 52 Slowest Speed 650 | 160 320 215 155 140 140 215 240 150 150 238 246 241 241 321 650 240 240 320 240 160 240 160 240 240 160 60 106 Overloaded Moves . | . . . . . . . . . . . . . . . . . . . . . . . . . . . . Propulsion Burnouts . | . . . . . . . . . . . . . . . . . . . . . . . . . . . . Robots Hopped 1 | . . . . . . . . . . . . . . . . . . . . 1 . . . . . . . Cave-ins Triggered . | . . . . . . . . . . . . . . . . . . . . . . . . . . . . Exploration Rate (%) 57 | 4 92 77 95 75 49 69 64 34 62 50 87 12 91 96 61 24 84 67 98 56 51 7 89 12 25 47 18 Regions Visited 27 Branch Regions 10 Pre-discovered Areas 17 | . 2 2 1 1 . 1 . 1 . 1 . . 2 6 . . . . . . . . . . . . . Known Exits Taken 13 | . 1 1 . . 1 1 . 1 . 1 . 1 1 1 1 . . . . 1 . 1 . . . 1 . Unknown Exits Taken 9 | 1 . . 1 1 . . . . . . . . . . . 1 1 1 1 . . . . 1 1 . . Scrap Searched 4 | . . . 2 . . . . . . . . . . . 2 . . . . . . . . . . . . Spaces Dug 167 | . . . . . 19 4 13 4 . 15 7 6 . . . 6 . . . 7 6 1 6 9 14 36 14 Terrain Destroyed 640 | . . 39 24 . 19 4 18 8 . 19 7 7 . . 15 10 9 35 5 120 11 1 16 143 20 96 14 Melee 115 | . . . . . . 4 13 . . 11 7 2 . . . 1 . . . 5 6 1 4 6 13 28 14 Projectile 265 | . . . . . . . . 8 . 7 . 5 . . 15 9 9 . 3 113 4 . 12 62 7 11 . AOE 253 | . . 39 24 . 19 . 5 . . . . . . . . . . 35 . . . . . 75 . 56 . Terrain Rammed . | . . . . . . . . . . . . . . . . . . . . . . . . . . . . Walls Destroyed . | . . . . . . . . . . . . . . . . . . . . . . . . . . . . Machines Disabled . | . . . . . . . . . . . . . . . . . . . . . . . . . . . . Actions | -11 -10 -9 -9 -9 -8 -8 -8 -8 -8 -8 -8 -7 -7 -7 -7 -5 -5 -5 -5 -5 -5 -4 -4 -4 -3 -2 -1 --------- Run | Yrd Mat Mat Min Exi Min Mat Gar Mat Gar Mat Gar Fac Sto Rec Scr Fac Ext Cet Arc Hub Gar Fac Gar Fac Res Res Acc Total 24597 | 76 983 1408 699 348 157 1134 771 529 566 848 825 559 1029 500 3479 1245 1223 322 596 866 762 164 1498 802 1100 1474 634 Wait 2909 | . 85 150 35 . 3 209 25 106 18 286 8 70 132 9 423 254 173 10 140 148 50 . 169 122 190 49 45 Move 18092 | 53 761 1059 606 344 138 803 551 379 484 443 668 393 693 472 2567 804 812 225 338 566 624 154 1068 433 812 1304 538 Hop 1 | . . . . . . . . . . . . . . . . . . . . 1 . . . . . . . Pick Up 319 | 7 23 38 8 2 1 15 24 7 . 14 11 6 16 2 45 21 14 14 5 4 7 . 15 10 5 4 1 Fast Attach 209 | 4 14 19 . . . 10 4 1 . 3 3 1 20 . 16 3 8 9 9 10 5 4 6 10 18 19 13 Attach 127 | 2 4 4 . . 1 2 8 1 . 5 4 8 3 1 31 7 5 4 3 2 2 . 6 13 8 2 1 Detach 77 | . 4 1 . . . . 2 . . 2 1 1 3 1 25 3 6 3 . 4 2 . 5 7 2 5 . Swap 442 | . 16 20 16 . 5 15 16 8 7 16 27 18 28 6 41 36 32 7 11 26 19 1 30 31 2 6 2 Drop 364 | . 17 41 11 2 2 25 21 5 1 13 11 7 20 2 39 21 19 20 7 13 10 3 17 15 12 7 3 Fire 1667 | 10 59 76 23 . 6 51 80 22 36 51 57 50 107 6 285 92 73 18 83 79 35 . 162 146 17 36 7 Melee 240 | . . . . . 1 4 26 . 9 11 25 2 1 . 6 2 1 12 . 7 8 1 14 12 34 40 24 Ram 1 | . . . . . . . . . . . . . . . . . . . . . . . . . . 1 . Kick . | . . . . . . . . . . . . . . . . . . . . . . . . . . . . Crush 27 | . . . . . . . . . . 4 . 1 2 1 . 1 4 . . 6 . 1 4 3 . . . Escape Stasis 36 | . . . . . . . 4 . 8 . 10 2 2 . . . 10 . . . . . . . . . . Rewire 81 | . . . . . . . 10 . . . . . 2 . . 1 66 . . . . . 2 . . . . Trap 4 | . . . . . . . . . 3 . . . . . 1 . . . . . . . . . . . . Miscellaneous 1 | . . . . . . . . . . . . . . . . . . . . . . . . . . 1 . Route ------- -11/Scrapyard -10/Materials (discovered 5 exits: *Mat x3 / *Min / Sub) -9/Materials (discovered 4 exits: *Mat x3 / *Min) -9/Mines (discovered 3 exits: *Mat x2 / *Exi) -9/Exiles -8/Mines (discovered 2 exits: *Mat x2) -8/Materials (discovered 4 exits: *Fac x3 / Gar) -8/Garrison (discovered 4 exits: *Mat x4) -8/Materials (discovered 4 exits: *Fac x3 / Gar) -8/Garrison (discovered 3 exits: Fac x2 / *Mat) -8/Materials (discovered 2 exits: Fac / Gar) -8/Garrison (discovered 3 exits: *Fac x3) -7/Factory -7/Storage (discovered 2 exits: [*Fac] / *Rec) -7/Recycling (discovered 2 exits: *Fac / *Scr) -7/Scraptown -5/Factory (discovered 5 exits: *Fac x2 / Upp x2 / *Ext) -5/Extension (discovered 2 exits: *Fac / *Cet) -5/Cetus (discovered 2 exits: *Fac / [*Arc]) -5/Archives (discovered 3 exits: *Fac / *Hub x2) -5/Hub_04(d) (discovered 4 exits: *Fac x3 / Gar) -5/Garrison (discovered 3 exits: *Fac x3) -4/Factory -4/Garrison (discovered 3 exits: *Fac x3) -4/Factory -3/Research -2/Research (discovered 3 exits: *Acc / Tes x2) -1/Access To Epsilon Eridani History --------- Turn | Location | Event 11 | -11/Scrapyard | Discovered new exit (range 14) 113 | -11/Scrapyard | Entered Materials 306 | -10/Materials | Build established: Mutant 320 | -10/Materials | Discovered new exit (range 16) 410 | -10/Materials | Discovered new exit (range 16) 1049 | -10/Materials | Discovered new exit (range 12) 1107 | -10/Materials | Discovered new exit (range 9) 1138 | -10/Materials | Learned location of Mines (-8) 1175 | -10/Materials | Identified exit to Subcaves 1223 | -10/Materials | Learned location of 2 exits from Subcaves 1232 | -10/Materials | Identified exit to Mines 1232 | -10/Materials | Identified exit to Materials 1235 | -10/Materials | Learned 2 Mines zone layouts 1268 | -10/Materials | Learned Storage emergency access door positions 1503 | -10/Materials | Repaired Lgt. Treads 1691 | -10/Materials | Entered another Materials area 1691 | -9/Materials | Evolved 2 slots: Propulsion x1, Weapon x1 2197 | -9/Materials | Identified exit to Mines 2697 | -9/Materials | Repaired Spread Laser 2891 | -9/Materials | First assault squad dispatched 2933 | -9/Materials | Discovered new exit (range 3) 2986 | -9/Materials | Build established: Scavenger-Gunner 3214 | -9/Materials | Repaired Spread Laser 3276 | -9/Materials | Learned Storage security intel 3296 | -9/Materials | Discovered new exit (range 9) 3419 | -9/Materials | Learned Storage terminal intel 3478 | -9/Materials | Identified exit to Materials 3527 | -9/Materials | Learned location of Zion (-7) 3616 | -9/Materials | Learned Storage trap positions 3700 | -9/Materials | Entered Mines 3856 | -9/Mines | Found a hidden stash of uninstalled traps 4044 | -9/Mines | Met a Derelict who couldn't figure out how to use a Trap Extractor 4090 | -9/Mines | Assembled infested the area 4095 | -9/Mines | Assisted by a Guerilla fighting off Assembled 4433 | -9/Mines | Build established: Gunner 4678 | -9/Mines | Deemed a non-threat by the Exiles lab entrance 4678 | -9/Mines | Discovered new exit (range 5) 4686 | -9/Mines | Entered Exiles 4724 | -9/Exiles | Met 8R-AWN 4744 | -9/Exiles | Met EX-HEX 4800 | -9/Exiles | Met EX-DEC 4829 | -9/Exiles | Met EX-BIN 4849 | -9/Exiles | Aligned with FarCom system 4850 | -9/Exiles | Given EX-Vault access code 4882 | -9/Exiles | Opened EX-Vault 4893 | -9/Exiles | Found Longsword +1 4925 | -9/Exiles | Warned to stay clear of 0b10 Research branches 5015 | -9/Exiles | Visited The Gauntlet 5160 | -9/Exiles | Discovered new exit (range 10) 5171 | -9/Exiles | Left Exiles lab with Longsword +1 5171 | -9/Exiles | Entered Mines 5174 | -8/Mines | Core integrity fell below 50% 5392 | -8/Mines | Entered Materials 5392 | -8/Materials | Evolved 2 slots: Utility x2 5468 | -8/Materials | Repaired Spread Laser 5755 | -8/Materials | Build established: Scavenger-Skirmisher 6136 | -8/Materials | Discovered new exit (range 4) 6186 | -8/Materials | Build established: Skirmisher 6318 | -8/Materials | Discovered new exit (range 18) 6339 | -8/Materials | Garrison activated, responded to threat 6361 | -8/Materials | Learned Factory emergency access door positions 6395 | -8/Materials | Identified exit to Factory 6428 | -8/Materials | Learned location of Lower Caves (-6) 6429 | -8/Materials | Learned 4 Recycling zone layouts 6439 | -8/Materials | Learned Storage stockpile data 6458 | -8/Materials | Learned 2 Lower Caves zone layouts 6680 | -8/Materials | Garrison activated, responded to threat 6858 | -8/Materials | Garrison activated, responded to threat 6902 | -8/Materials | Identified exit to Garrison 6958 | -8/Materials | Entered Garrison 6958 | -8/Garrison | Accompanied by 2 allies 7047 | -8/Garrison | Triggered checkpoint 7104 | -8/Garrison | Destroyed 8 combat bots 7106 | -8/Garrison | Lost 4 parts (2n2w) 7228 | -8/Garrison | Discovered new exit (range 63) 7228 | -8/Garrison | Discovered new exit (range 60) 7228 | -8/Garrison | Discovered new exit (range 43) 7228 | -8/Garrison | Discovered new exit (range 49) 7420 | -8/Garrison | Triggered checkpoint 7643 | -8/Garrison | Installed Relay Interface Framework 7832 | -8/Garrison | Triggered checkpoint 7836 | -8/Garrison | Triggered checkpoint 7875 | -8/Garrison | Destroyed 7 combat bots 8031 | -8/Garrison | Spotted B-75 Beast 8112 | -8/Garrison | Core integrity fell below 50% 8117 | -8/Garrison | Destroyed B-75 Beast 8432 | -8/Garrison | Triggered checkpoint 8455 | -8/Garrison | Entered Materials 8455 | -8/Materials | Accompanied by 1 ally 8478 | -8/Materials | Build established: Scavenger-Skirmisher 8863 | -8/Materials | Identified exit to Garrison 9144 | -8/Materials | Learned Storage trap positions 9208 | -8/Materials | Entered Garrison 9208 | -8/Garrison | Accompanied by 1 ally 9231 | -8/Garrison | Expanded RIF knowledge: Coupler Efficiency 9276 | -8/Garrison | Triggered checkpoint 9384 | -8/Garrison | Triggered checkpoint 9420 | -8/Garrison | Discovered new exit (range 5) 9610 | -8/Garrison | Triggered checkpoint 9611 | -8/Garrison | Triggered checkpoint 9770 | -8/Garrison | Triggered checkpoint 10081 | -8/Garrison | Entered Materials 10455 | -8/Materials | Build established: Hacker-Skirmisher 10747 | -8/Materials | Repaired KE Penetrator 10808 | -8/Materials | Repaired Enh. Autogun 11322 | -8/Materials | Learned Factory machine intel 11374 | -8/Materials | Learned Storage emergency access door positions 11414 | -8/Materials | Learned Factory stockpile data 11445 | -8/Materials | Learned location of Recycling (-7) 11465 | -8/Materials | Learned Factory trap positions 11493 | -8/Materials | Learned Factory scanalyzer intel 11589 | -8/Materials | Identified exit to Garrison 11589 | -8/Materials | Entered Garrison 11707 | -8/Garrison | Triggered checkpoint 12089 | -8/Garrison | Build established: Mutant 12114 | -8/Garrison | Triggered checkpoint 12200 | -8/Garrison | Core integrity fell below 20% 12279 | -8/Garrison | Destroyed 8 combat bots 12413 | -8/Garrison | Expanded RIF knowledge: Alert ID Control 12500 | -8/Garrison | Triggered checkpoint 12571 | -8/Garrison | Learned Factory security intel 12581 | -8/Garrison | Garrison Relay disabled 12688 | -8/Garrison | Discovered exit to Factory (range 12) 12855 | -8/Garrison | Discovered exit to Factory (range 15) 13015 | -8/Garrison | Triggered checkpoint 13392 | -8/Garrison | Discovered exit to Factory (range 12) 13411 | -8/Garrison | Expanded RIF knowledge: Zone Cloak 13460 | -8/Garrison | Entered Factory 13460 | -7/Factory | Evolved 2 slots: Power x1, Utility x1 13461 | -7/Factory | Identified exit to Storage 13462 | -7/Factory | Loaded intel: 104 trap records 13466 | -7/Factory | Loaded intel: 285 machine locations 13467 | -7/Factory | Loaded intel: 4 scanalyzer locations 14065 | -7/Factory | Build established: Hacker-Skirmisher 14280 | -7/Factory | Fabricated G-47 Trooper? 14302 | -7/Factory | Fabricated G-47 Trooper? 14355 | -7/Factory | Fabricated G-47 Trooper (x3) 14360 | -7/Factory | Fabricated G-47 Trooper? 14386 | -7/Factory | Fabricated G-47 Trooper (x3) 14419 | -7/Factory | Fabricated G-47 Trooper (x3) 14438 | -7/Factory | Lost 6 allies 14612 | -7/Factory | Build established: Commander-Skirmisher 14629 | -7/Factory | Entered Storage 14629 | -7/Storage | Accompanied by 13 allies 14630 | -7/Storage | Loaded intel: 10 trap records 14632 | -7/Storage | Loaded intel: 13 terminal locations 14778 | -7/Storage | Identified exit to Recycling 15287 | -7/Storage | Discovered new exit (range 19) 15294 | -7/Storage | P-60 Hacker assimilated allied G-47 Trooper 15373 | -7/Storage | Lost 6 allies 15641 | -7/Storage | Build established: Skirmisher 15932 | -7/Storage | Repaired Arm. Treads 16162 | -7/Storage | Repaired Enh. Autogun 16322 | -7/Storage | Assisted by bots powering up and referring to "LRC-V3" 16544 | -7/Storage | Met a pair of Derelict thieves 16574 | -7/Storage | Learned location of Extension (-5) 16638 | -7/Storage | Build established: Commander-Skirmisher 16643 | -7/Storage | P-60 Hacker assimilated allied Trooper 4y 16675 | -7/Storage | Lost 9 allies 16682 | -7/Storage | Destroyed 8 combat bots 16730 | -7/Storage | Learned location of 3 exits from Factory 16762 | -7/Storage | Learned location of 1 exit from Upper Caves 16767 | -7/Storage | Entered Recycling 16768 | -7/Recycling | Identified exit to Factory 16769 | -7/Recycling | Identified exit to Scraptown 16944 | -7/Recycling | Build established: Skirmisher 17922 | -7/Recycling | Scanned before Scraplab entrance 17967 | -7/Recycling | Entered Scraplab 17999 | -7/Recycling | Entered Scraptown 18287 | -7/Scraptown | Build established: Tank 18349 | -7/Scraptown | Turned away by UFD registrar 18349 | -7/Scraptown | Turned away by UFD registrar 18394 | -7/Scraptown | Visited Cave Peace 18483 | -7/Scraptown | Visited Fellowship of the Rings 18548 | -7/Scraptown | Visited Spacefarers 19395 | -7/Scraptown | Visited Assassins FH 19511 | -7/Scraptown | Visited SPCMW 19786 | -7/Scraptown | Attacked by Scraptown defenders 20029 | -7/Scraptown | Found Scrap Suit 20071 | -7/Scraptown | Core integrity fell below 50% 20105 | -7/Scraptown | Destroyed Triborg 20136 | -7/Scraptown | Found Tri-treads 20174 | -7/Scraptown | Found Scrap Suit 20264 | -7/Scraptown | Found Siege Articulator 20280 | -7/Scraptown | Found Siege Articulator 20541 | -7/Scraptown | Found Tri-treads 20599 | -7/Scraptown | Build established: Scavenger-Tank 20938 | -7/Scraptown | Destroyed 13 combat bots 20991 | -7/Scraptown | Found Scrap Suit 21220 | -7/Scraptown | Found PL-3XN's Ring of Power 21354 | -7/Scraptown | Found Scrap Suit 21420 | -7/Scraptown | Core integrity fell below 20% 21579 | -7/Scraptown | Found Scrap Suit 21638 | -7/Scraptown | Build established: Scavenger-Scrapper 22155 | -7/Scraptown | Visited IN-MT5's Study 22997 | -7/Scraptown | Visited The Evicted 24608 | -7/Scraptown | Lost 3 parts (1u2w) 24644 | -7/Scraptown | Destroyed 15 combat bots 24674 | -7/Scraptown | Found Scrap Suit 24808 | -7/Scraptown | Found Scrap Suit 25051 | -7/Scraptown | Entered Factory 25051 | -5/Factory | Evolved 4 slots: Power x1, Propulsion x1, Utility x2 25052 | -5/Factory | Identified exit to Upper Caves 25052 | -5/Factory | Identified exit to Factory 25599 | -5/Factory | Discovered exit to Factory (range 15) 26034 | -5/Factory | Found Tesla Bomb Launcher 26198 | -5/Factory | Build established: Bothacker-Skirmisher 26870 | -5/Factory | Discovered new exit (range 13) 27060 | -5/Factory | Entered Extension 27064 | -5/Extension | Build established: Hacker-Skirmisher 27110 | -5/Extension | Disrupted transfer network 27485 | -5/Extension | Build established: Scavenger-Tank 27722 | -5/Extension | Rescued a captive Derelict 27734 | -5/Extension | Rescued a captive Derelict 27771 | -5/Extension | Rescued a captive Derelict 27801 | -5/Extension | Rescued a captive Derelict 28018 | -5/Extension | Build established: Scavenger-Skirmisher 28314 | -5/Extension | Lost 3 allies 28328 | -5/Extension | Spotted B-75 Beast 28349 | -5/Extension | Destroyed B-75 Beast 28364 | -5/Extension | Lost 3 allies 28651 | -5/Extension | Rescued a captive Derelict 28661 | -5/Extension | Rescued a captive Derelict 28836 | -5/Extension | Rescued a captive Derelict 28860 | -5/Extension | First assault squad dispatched 28870 | -5/Extension | Found Imp. Powered Armor 28903 | -5/Extension | Rescued A7 28919 | -5/Extension | Rescued a captive Derelict 28965 | -5/Extension | Lost 5 allies 29246 | -5/Extension | Rescued a captive Derelict 29296 | -5/Extension | Discovered exit to Factory (range 10) 29298 | -5/Extension | Discovered new exit (range 6) 29355 | -5/Extension | Entered Cetus 29355 | -5/Cetus | Accompanied by 4 allies (A7) 29360 | -5/Cetus | Acquired a Cetus Manufacturing Module code from A7 29385 | -5/Cetus | Spotted Cetus Guard 29385 | -5/Cetus | Spotted Cetus Guard 29387 | -5/Cetus | Spotted Cetus Guard 29387 | -5/Cetus | Spotted Cetus Guard 29392 | -5/Cetus | Destroyed Cetus Guard 29395 | -5/Cetus | Destroyed Cetus Guard 29396 | -5/Cetus | Destroyed Cetus Guard 29397 | -5/Cetus | Destroyed Cetus Guard 29569 | -5/Cetus | Started Cetus Manufacturing Module 29594 | -5/Cetus | Manufactured an Enhanced Grunt 29611 | -5/Cetus | Found a strange terminal 29619 | -5/Cetus | Manufactured an Enhanced Grunt 29644 | -5/Cetus | Manufactured an Enhanced Grunt 29657 | -5/Cetus | Escorted A7 to Cetus Mainframe 29669 | -5/Cetus | Manufactured an Enhanced Grunt 29694 | -5/Cetus | Manufactured an Enhanced Grunt 29694 | -5/Cetus | Discovered new exit (range 15) 29739 | -5/Cetus | Spotted Cetus Guard 29739 | -5/Cetus | Spotted Cetus Guard 29742 | -5/Cetus | Spotted Cetus Guard 29742 | -5/Cetus | Spotted Cetus Guard 29747 | -5/Cetus | Allies destroyed Cetus Guard 29753 | -5/Cetus | Destroyed Cetus Guard 29755 | -5/Cetus | Destroyed Cetus Guard 29758 | -5/Cetus | Destroyed Cetus Guard 29768 | -5/Cetus | Discovered exit to Factory (range 15) 29780 | -5/Cetus | Met Revision 17 29790 | -5/Cetus | Murdered Revision 17 29821 | -5/Cetus | System corruption reached 10% 30025 | -5/Cetus | Murdered A7 30028 | -5/Cetus | Extracted ID and sensor layout for unrecognized location from A7's data core 30051 | -5/Cetus | Entered Archives 30051 | -5/Archives | Accompanied by 7 allies 30245 | -5/Archives | Discovered exit to Factory (range 16) 30426 | -5/Archives | Discovered new exit (range 15) 30448 | -5/Archives | Discovered new exit (range 16) 30935 | -5/Archives | Entered Hub_04(d) 30935 | -5/Hub_04(d) | Accompanied by 5 allies 31115 | -5/Hub_04(d) | Discovered exit to Factory (range 15) 31235 | -5/Hub_04(d) | First assault squad dispatched 31456 | -5/Hub_04(d) | Discovered exit to Factory (range 8) 31485 | -5/Hub_04(d) | Identified exit to Garrison 31509 | -5/Hub_04(d) | Network Hub disabled 31511 | -5/Hub_04(d) | Spotted Lightning 31513 | -5/Hub_04(d) | Spotted Lightning 31517 | -5/Hub_04(d) | Spotted Lightning 31532 | -5/Hub_04(d) | Spotted Lightning 31536 | -5/Hub_04(d) | Destroyed Lightning 31536 | -5/Hub_04(d) | Destroyed Lightning 31536 | -5/Hub_04(d) | Spotted Lightning 31539 | -5/Hub_04(d) | Garrison activated, responded to threat 31544 | -5/Hub_04(d) | Lost 3 allies 31548 | -5/Hub_04(d) | Destroyed Lightning 31569 | -5/Hub_04(d) | Destroyed Lightning 31574 | -5/Hub_04(d) | Spotted Lightning 31582 | -5/Hub_04(d) | Destroyed Lightning 31607 | -5/Hub_04(d) | Found Prototype Device 31607 | -5/Hub_04(d) | Identified Exp. EM Disruption Field 31617 | -5/Hub_04(d) | Destroyed 8 combat bots 31618 | -5/Hub_04(d) | Found Prototype Processor 31632 | -5/Hub_04(d) | Found Prototype Processor 31637 | -5/Hub_04(d) | Found Exp. EM Disruption Field 31660 | -5/Hub_04(d) | Found Prototype Energy Cannon 31667 | -5/Hub_04(d) | Found Exp. EM Disruption Field 31789 | -5/Hub_04(d) | Discovered exit to Factory (range 12) 31999 | -5/Hub_04(d) | Build established: Scavenger-Tank 32071 | -5/Hub_04(d) | Network Hub disabled 32197 | -5/Hub_04(d) | Found Prototype Device 32197 | -5/Hub_04(d) | Identified Exp. Phase Shifter 32235 | -5/Hub_04(d) | Identified EMDS 32242 | -5/Hub_04(d) | Garrison activated, responded to threat 32251 | -5/Hub_04(d) | Found EMDS 32285 | -5/Hub_04(d) | Entered Garrison 32321 | -5/Garrison | Triggered checkpoint 32459 | -5/Garrison | Triggered checkpoint 32563 | -5/Garrison | Destroyed 12 combat bots 32596 | -5/Garrison | Discovered exit to Factory (range 8) 32629 | -5/Garrison | Triggered checkpoint 32713 | -5/Garrison | Garrison Relay disabled 32912 | -5/Garrison | Triggered checkpoint 32971 | -5/Garrison | Discovered exit to Factory (range 60) 32971 | -5/Garrison | Discovered exit to Factory (range 15) 32971 | -5/Garrison | Discovered exit to Factory (range 57) 33181 | -5/Garrison | Expanded RIF knowledge: Watcher Feeds 33385 | -5/Garrison | Triggered checkpoint 33440 | -5/Garrison | Found Quantum Capacitor 33487 | -5/Garrison | Entered Factory 33487 | -4/Factory | Evolved 2 slots: Propulsion x1, Utility x1 33498 | -4/Factory | Build established: Scavenger-Skirmisher 33737 | -4/Factory | First assault squad dispatched 33746 | -4/Factory | Identified exit to Garrison 33746 | -4/Factory | Entered Garrison 33837 | -4/Garrison | Triggered checkpoint 34087 | -4/Garrison | Expanded RIF knowledge: Robot Detection 34137 | -4/Garrison | Build established: Scavenger-Tank 34423 | -4/Garrison | System corruption reached 10% 34430 | -4/Garrison | Found Relay Coupler [Proto] 34434 | -4/Garrison | Found Relay Coupler [Proto] 34437 | -4/Garrison | Found Relay Coupler [Proto] 34440 | -4/Garrison | Found Relay Coupler [Proto] 34549 | -4/Garrison | Spotted B-86 Titan 34596 | -4/Garrison | Destroyed B-86 Titan 34671 | -4/Garrison | Triggered checkpoint 34723 | -4/Garrison | Identified Exp. Targeting Computer (x2) 34843 | -4/Garrison | Discovered new exit (range 11) 34850 | -4/Garrison | Triggered checkpoint 35017 | -4/Garrison | Triggered checkpoint 35342 | -4/Garrison | Spotted B-86 Titan 35353 | -4/Garrison | Destroyed B-86 Titan 35425 | -4/Garrison | Discovered new exit (range 11) 35660 | -4/Garrison | Triggered checkpoint 35741 | -4/Garrison | Discovered new exit (range 10) 35790 | -4/Garrison | Build established: Scavenger-Mutant 35802 | -4/Garrison | Rescued a captive Derelict 35812 | -4/Garrison | Rescued a captive Derelict 35866 | -4/Garrison | Triggered checkpoint 35911 | -4/Garrison | Expanded RIF knowledge: Code Merge 36062 | -4/Garrison | Triggered checkpoint 36223 | -4/Garrison | System corruption reached 30% 36225 | -4/Garrison | Entered Factory 36225 | -4/Factory | Accompanied by 1 ally 36475 | -4/Factory | First assault squad dispatched 36663 | -4/Factory | Destroyed 7 combat bots 36753 | -4/Factory | Discovered new exit (range 26) 37151 | -4/Factory | High security lockdown imminent 37231 | -4/Factory | High security lockdown engaged 37231 | -4/Factory | Destroyed 7 combat bots 37391 | -4/Factory | Destroyed 9 combat bots 37474 | -4/Factory | Destroyed 8 combat bots 37518 | -4/Factory | Entered Research 37518 | -3/Research | Evolved 2 slots: Propulsion x1, Utility x1 37541 | -3/Research | Lost 7 parts (2p2n2u1w) 37768 | -3/Research | First assault squad dispatched 37772 | -3/Research | Build established: Mutant 37847 | -3/Research | Lost 6 parts (2n3u1w) 37847 | -3/Research | Found Quantum Capacitor 38206 | -3/Research | Discovered new exit (range 3) 38261 | -3/Research | Build established: Scavenger-Scout 38321 | -3/Research | Entered another Research area 38321 | -2/Research | Evolved 2 slots: Propulsion x1, Utility x1 38355 | -2/Research | Spotted B-90 Cyclops 38424 | -2/Research | Found Prototype Processor 38424 | -2/Research | Identified Exp. Signal Interpreter 38514 | -2/Research | Destroyed 8 combat bots 38571 | -2/Research | First assault squad dispatched 38593 | -2/Research | Identified exit to Testing 38789 | -2/Research | Fabricated IN-MT5's Pitchfork "Insurrection"? 38815 | -2/Research | System corruption reached 10% 38833 | -2/Research | Lost 5 parts (1p2n2u) 38839 | -2/Research | Found Prototype Slashing Weapon 38839 | -2/Research | Identified Nanosword 38940 | -2/Research | Spotted B-90 Cyclops 39115 | -2/Research | Spotted B-90 Cyclops 39161 | -2/Research | Discovered new exit (range 13) 39182 | -2/Research | Identified exit to Access 39184 | -2/Research | Entered Access 39184 | -1/Access | Evolved 2 slots: Utility x2 39210 | -1/Access | Lost 6 parts (1p2n2u1w) 39379 | -1/Access | Found Prototype Device 39379 | -1/Access | Identified Exp. Shock Absorption System 39445 | -1/Access | Reprogrammed and armed K-01 Serf 39525 | -1/Access | Build established: Hacker-Scout 39527 | -1/Access | Reprogrammed and armed K-01 Serf 39607 | -1/Access | Discovered new exit (range 6) 39609 | -1/Access | Identified exit to Surface 39610 | *** | Escaped! Last Messages --------------- 39573_ Slug penetrates Wall. 39573_ Imp. Remote Datajack destroyed. 39575_ Triggered Alarm Trap. 39575_ An alarm sounds. 39575_ ALERT: Alarm triggered, dispatching investigation squad. 39589_ System corrupted: Matter fused (-7). 39594_ Sneak attack on U-05 Engineer. 39594_ U-05 Engineer destroyed. 39596_ Acquired 16 matter. 39597_ Acquired Terrain Scan Processor. 39597_ K-01 Serf collects debris. 39601_ Adv. Terrain Scan Processor destroyed. 39601_ Critical hit (Blast). 39601_ K-01 Serf collects debris. 39606_ Connecting with Terminal... >>Open(Door) Sealed Barrier opened. 39607_ The Access Shell folds into the floor. 39607_ EXIT=FOUND 39609_ EXIT=IDENTIFIED: SURFACE Map ----- +----------------------------------------------------+ | #??####? ? ?"? ##??######### ########?# | | ############??#????? ??# + ##?#?#?#?? | | ??#??#?##?###?#??? ?? # # #??#????#? | | ##???????##?#?##???????#?# # ##????##?? | | ?????##?#?##??#?????????## ?# #?###??#?# | | #???????#?#??????????????# # ##??###### | | ?#???##?#??##????????????# # #####??### | | ?#??#???????#?#??????????# =? # ########?? | | ????????#?????#??????????# ?? # ##?##?##?? | | ###?#?#??????????????????# # ##???###?? | | ##???##??????????????????# ???# ##?###???? | | ? ???????????????????? * ? # ##?##??#?# | | ? ?? ????????????????# ? # #?##?##??? | | ? ? ??????????????????#? ?? # =##???#???# | | ?? ? ?????????????????????##??##?###?#=%#??#???#?? | | ???????????????????????##????#?##! #??##?#?#? | | " ???????????????????????#######??# #?##?#???# | | ? "??????????????????#?????####?####?# ###?#??### | | ???"??? ?????????????##???###???#?### #?#?#??##? | | ??? " ???????????????#?????########?##% #?#??#???? | | ? ?? ??#???#?????########## #######R #?#??##?#? | | ?? ?????? ?????"?"" #??????#?? | | ? ? ?? ???BB ???" #?#?###??# | | ###???+##? ??BB?"??" #?##???#?? | | #??? ?????????????" ###?###??# | | #??? ?? ?????????" "@ ##?###?#?? | | # ? ? ?? ???????" "" #?#?####?? | | #? ?? ? ?? ???????" ##?#??#??? | | # ? #?#????BB????" k#?##?#?##? | | #? ?#?# ? ?BB?"??" """ """ #????#?#?? | | #? ??? ????????" """T""" #?##?????? | | #? ##??#????????########## ####### #????????? | | # ##?#????#???????#?????###?#???# #?????#??? | | #?? #?#####????##??#??#?#????#????? #?#??????? | | # ##??#??????????#??? ?? ??? ??? # ???????? | | #? # ??? ??????????????? ????????# #????????? | | # #????????????????#????? ??? ? H+????????? | | ### #????????????????????????"?? ??????? ?????? | | #?? ? ??????????????? ? ?????????#????????? | | # ?????????????????? ???"????????? ???????? | | + ??????????????????????????????????????? | | #???? ?????????????? ?????????????????????? | | # ????????????????????????????????????????? | | #? ???????????????????????????????????????? | | #####+????????????????????????????????????? | | ???????????????????????????????????? | | ???????????????????????????????????? | | ???????????????????????????????????? | | ???????????????????????????????????? | | ########## ???????????????????????????????????? | +----------------------------------------------------+ Best States ------------- Heat Dissipation 105 Coolant Potential 100 Energy Generation 61 Energy Capacity 1230 Matter Stores 300 Matter Capacity 450 Sight Range 20 Terrain Scan Range 16 Terrain Scan Density 610 Jamming Range 14 Additional Mass Support 16 Base Temperature (-) 200 Armor Coverage 1200 Resistance: KI 30 Resistance: EX 75 Resistance: EM 75 Propulsion Shielding 66 Weapon Shielding 66 Weapon Cycling 25 Evasion (%) 56 Targeting Accuracy 12 Melee Accuracy 6 Core Analysis 9 Recoil Reduction 5 Energy Filtering 50 Particle Charging 25 Salvage Targeting 4 Offensive Hacking 24 Defensive Hacking 36 Relay Coupler Types 3 Relay Coupler Value 79 Authchip Count 6 Trap Extractor Capacity 6 Item Schematics ----------------- Huge Storage Unit | -10/Materials | Hacked IN-MT5's Pitchfork "Insurrection" | -7/Scraptown | Archive Robot Schematics ------------------ G-34 Mercenary | -10/Materials | Hacked G-47 Trooper | -7/Factory | Hacked Fabricated ------------ G-47 Trooper | x3 | -7/Factory | Authchip G-47 Trooper | x3 | -7/Factory | Authchip G-47 Trooper | x3 | -7/Factory | Authchip G-47 Trooper | x3 | -7/Factory | Authchip G-47 Trooper | x3 | -7/Factory | Authchip G-47 Trooper | x3 | -7/Factory | Authchip IN-MT5's Pitchfork "Insurrection" | x1 | -2/Research Alien Tech Used ----------------- None Achievements -------------- None Challenges ------------ None Game ------ Seed BoltHybridRipper Manual? 0 Play Time 05:49:05 Cumulative 574.5 hours Start 2024.07.31 @ 01:05:51 End 2024.08.01 @ 20:27:24 Sessions 3 Manual Loads 0 Difficulty Rogue Special Mode None Game No. 201 Rogue 185 Adventurer 15 Explorer 1 Win Type 0 Total 36 Types 10/3/10/2/2/0/5/3/1 Lore% 89 Gallery% 92 Achievement% 83 Wizard Run 0 Options --------- Layout 0 ASCII 0 Keyboard 0 Movement Numpad Keybinds 0 Fullscreen 1 Font 18/SmallcapsGlow Map View 76x50 Zoom Use 0% Tactical HUD 1 Map Filters NONE Filters NONE Steam 1 RUN: 4f339015-7080-461b-afa1-eb7c63585259